bitfinex/quotes_ETHUSD_20220101
["timestamp","ask_amount","ask_price","bid_price","bid_amount"]
[1641017803503,0.3,3739.4,3738.6,0.01307373]
[1641017803703,0.3,3739.4,3738.6,0.68174373]
[1641017804102,0.3,3739.4,3738.7,0.01250531]
[1641017807159,0.3,3739.4,3738.6,0.01307373]
[1641017807961,0.79192604,3739.1,3738.5,0.01364216]
[1641017808392,0.79192604,3739.1,3738.5,1.37480528]
[1641017808799,0.79192604,3739.1,3738.6,0.01307373]
[1641017809700,0.3,3739.4,3738.6,0.01307373]
[1641017810102,2.32138373,3739.4,3738.6,0.01307373]
[1641017810500,3.29112898,3739.4,3738.6,0.01307373]
[1641017811004,15.65,3739.3,3738.6,0.01307373]
[1641017811201,17.0288,3739.3,3738.6,0.01307373]
[1641017811404,1.0,3739.2,3738.5,0.01364216]
[1641017811604,1.3,3739.2,3738.5,0.01364216]
[1641017812004,1.63779,3738.9,3738.5,0.01364216]
[1641017812271,0.66894,3738.7,3738.5,0.01364216]
[1641017812474,15.65,3738.6,3738.5,0.01364216]
[1641017812774,15.65,3738.6,3737.8,0.01762112]
[1641017812775,17.25,3738.6,3737.8,0.01762112]
[1641017813176,15.65,3738.4,3737.8,0.01762112]
[1641017813377,15.95,3738.4,3737.8,0.01762112]
[1641017813577,1.0,3738.3,3737.7,0.01818955]
[1641017814181,0.6,3738.4,3737.7,0.01818955]
[1641017814380,0.80389846,3737.9,3737.7,0.01818955]
[1641017814581,1.10389846,3737.9,3737.6,0.01875797]
[1641017816118,0.3,3737.8,3737.6,0.01875797]
[1641017817016,0.3,3737.8,3737.2,0.02103166]
[1641017820470,0.3,3737.8,3737.1,0.02160009]
[1641017824119,0.3,3737.8,3737.0,0.02216851]
[1641017828364,1.88513887,3737.7,3737.0,0.02216851]
[1641017828564,2.18513887,3737.7,3737.0,0.02216851]
[1641017830467,2.18513887,3737.7,3736.9,0.02273693]
[1641017835859,2.18513887,3737.7,3736.8,0.02330536]
[1641017836460,1.6,3737.8,3736.9,0.66893]
[1641017836661,0.6,3737.8,3736.9,0.66893]
[1641017836961,0.3,3737.8,3737.0,0.02216851]
[1641017837164,2.64050191,3737.7,3737.0,0.02216851]
[1641017837566,1.3,3737.6,3737.0,0.02216851]
[1641017838403,1.3,3737.6,3736.8,0.02330536]
[1641017838599,0.3,3737.6,3736.7,0.02387378]
[1641017839003,0.3,3737.8,3736.9,1.36116312]
[1641017839400,0.3,3737.8,3737.0,0.02216851]
[1641017840001,0.3,3737.8,3737.0,0.66891]
[1641017840405,4.8158,3738.3,3737.1,0.02160009]
[1641017840604,1.0,3738.3,3737.1,0.02160009]
[1641017840801,1.0,3738.3,3737.0,2.61162262]
[1641017841012,3.1797,3738.7,3737.3,1.33758]
[1641017841210,3.8824,3738.6,3737.8,0.66877]
[1641017841411,4.53690019,3738.7,3738.0,0.5261]
[1641017841808,4.53690019,3738.7,3738.1,0.01591585]
[1641017842010,1.35720019,3738.7,3738.1,0.01591585]
[1641017842257,0.0599,3739.0,3738.1,0.01591585]
[1641017842862,1.0,3739.3,3738.1,0.01591585]
[1641017842863,2.60869914,3738.9,3738.1,0.68463585]
[1641017843063,2.60869914,3738.9,3738.1,3.0096538]
[1641017843266,2.60869914,3738.9,3738.2,0.01534743]
[1641017844066,0.0585,3739.9,3738.4,1.36116312]
[1641017844067,3.91589933,3739.4,3738.4,1.36116312]
[1641017844266,3.91589933,3739.4,3738.9,0.66852]
[1641017844466,3.91589933,3739.4,3738.9,0.9335]
[1641017844667,3.91589933,3739.4,3739.0,0.01080004]
[1641017844869,1.35720019,3739.4,3739.0,0.01080004]
[1641017845066,1.35720019,3739.3,3739.0,0.01080004]
[1641017845267,1.35720019,3739.3,3738.5,0.01364216]
[1641017845467,1.35720019,3739.3,3738.4,0.01421058]
[1641017845668,1.35720019,3739.3,3738.4,1.3753737]
[1641017846127,1.35720019,3739.3,3738.5,0.01364216]
[1641017846727,1.35720019,3739.3,3738.6,0.66861]
[1641017847127,1.35720019,3739.3,3738.7,0.01250531]
[1641017847731,1.35720019,3739.3,3738.5,0.01364216]
[1641017848131,1.95720019,3739.3,3738.5,0.01364216]
[1641017848333,1.35720019,3739.2,3738.5,0.01364216]
[1641017848734,1.35720019,3739.2,3738.4,0.01421058]
[1641017849135,1.03554286,3738.6,3738.4,0.01421058]
[1641017849335,1.03554286,3738.6,3738.1,0.01591585]
[1641017849536,1.33554286,3738.6,3738.0,0.01648428]
[1641017849769,1.63554286,3738.6,3738.0,0.01648428]
[1641017850176,1.63554286,3738.6,3737.9,0.0170527]
[1641017852780,0.6,3738.6,3737.9,0.0170527]
[1641017853280,0.3583,3738.9,3737.9,0.0170527]
[1641017854231,1.04918707,3738.8,3737.9,0.0170527]
[1641017854628,1.34918707,3738.8,3737.9,0.0170527]
[1641017855030,2.34918707,3738.8,3737.9,0.0170527]
[1641017855429,1.34918707,3738.8,3737.9,0.0170527]
[1641017855629,2.34918707,3738.8,3737.9,0.0170527]
[1641017855829,1.34918707,3738.8,3737.9,0.0170527]
[1641017856030,2.34918707,3738.8,3737.9,0.0170527]
[1641017856331,1.34918707,3738.8,3737.9,0.0170527]
[1641017856735,16.99918707,3738.8,3737.9,0.0170527]
[1641017856934,17.99918707,3738.8,3737.9,0.0170527]
[1641017857156,1.0,3738.7,3737.6,0.01875797]
[1641017857358,1.3,3738.7,3737.6,0.01875797]
[1641017857560,0.66901,3738.1,3737.6,0.01875797]
[1641017858158,1.3,3738.1,3737.2,0.02103166]
[1641017858358,2.65720019,3738.1,3737.1,0.02160009]
[1641017858761,2.65720019,3738.1,3736.9,0.02273693]
[1641017858960,0.66901,3737.7,3736.9,0.02273693]
[1641017859163,0.94437249,3737.6,3736.9,0.02273693]
[1641017859565,1.54437249,3737.6,3736.9,0.02273693]
[1641017860168,1.54437249,3737.6,3736.8,0.02330536]
[1641017860363,0.66909,3737.3,3736.8,0.02330536]
[1641017860565,0.96909,3737.3,3736.5,0.02501063]
[1641017860765,0.3,3737.3,3736.5,0.02501063]
[1641017861017,0.3,3737.2,3736.5,0.02501063]
[1641017861419,1.0,3737.5,3736.5,0.02501063]
[1641017861420,0.3,3737.5,3736.5,0.02501063]
[1641017861619,1.0,3737.5,3736.5,0.02501063]
[1641017861817,1.0,3737.5,3736.3,0.02614747]
[1641017861818,0.66914,3737.0,3736.3,0.02614747]
[1641017862418,0.96914,3737.0,3736.3,0.02614747]
[1641017862619,0.96914,3737.0,3736.2,0.0267159]
[1641017863624,0.96914,3737.0,3736.1,0.02728432]
[1641017864526,2.51458392,3736.9,3736.1,0.02728432]
[1641017865789,0.66918,3736.8,3736.1,0.02728432]
[1641017865989,1.96918,3736.8,3736.1,0.02728432]
[1641017866787,2.51458392,3736.7,3736.1,0.02728432]
[1641017866992,2.81458392,3736.7,3736.1,0.02728432]
[1641017867192,1.0,3736.6,3736.1,0.02728432]
[1641017867390,1.3,3736.6,3736.0,3.45768432]
[1641017867589,0.9628932,3736.5,3736.0,3.45768432]
[1641017867790,0.96516689,3736.5,3736.0,3.45768432]
[1641017867991,0.00227369,3736.5,3736.0,3.45768432]
[1641017872272,1.79609959,3736.5,3736.0,3.45768432]
[1641017872475,0.98280771,3736.1,3736.0,3.45768432]
[1641017875913,0.00227369,3736.5,3736.0,3.45768432]
[1641017876615,1.75454393,3736.5,3736.0,3.45768432]
[1641017876812,2.05454421,3736.5,3736.0,3.45768432]
[1641017877017,0.60227369,3736.5,3736.0,3.45768432]
[1641017877417,2.07594402,3736.5,3736.0,3.45768432]
[1641017877618,1.77436887,3736.5,3736.0,3.45768432]
[1641017878020,0.00227369,3736.5,3736.0,3.45768432]
[1641017880278,1.78293374,3736.5,3736.0,3.45768432]
[1641017880483,0.00227369,3736.5,3736.0,3.45768432]
[1641017880879,1.7309459,3736.5,3736.0,3.45768432]
[1641017881280,0.00227369,3736.5,3736.0,3.45768432]
[1641017882284,1.73104228,3736.5,3736.0,3.45768432]
[1641017882484,0.00227369,3736.5,3736.0,3.45768432]
[1641017893824,0.00227369,3736.5,3736.1,0.66905]
[1641017894423,2.5425934,3736.5,3736.4,1.80317356]
[1641017895481,2.5425934,3736.5,3736.3,1.3687305]
[1641017895882,0.00170527,3736.4,3736.3,1.3687305]
[1641017898918,0.00170527,3736.4,3736.0,4.89490864]
[1641017899320,0.00113685,3736.3,3736.0,4.89490864]
[1641017899719,0.00170527,3736.4,3736.0,4.89490864]
[1641017900220,0.00113685,3736.3,3736.1,1.3687305]
[1641017900620,2.54031971,3736.5,3736.1,1.3687305]
[1641017900621,0.00170527,3736.4,3736.1,1.3687305]
[1641017901021,0.00113685,3736.3,3736.1,1.3687305]
[1641017901227,0.00113685,3736.3,3736.0,4.82641482]
[1641017901419,0.00170527,3736.4,3736.0,4.82641482]
[1641017901819,0.00113685,3736.3,3736.0,4.82641482]
[1641017902267,0.00170527,3736.4,3736.0,4.82641482]
[1641017902668,0.00113685,3736.3,3736.1,1.3687305]
[1641017903068,0.00170527,3736.4,3736.1,1.3687305]
[1641017903268,1.42590232,3736.4,3736.1,1.3687305]
[1641017903479,0.00113685,3736.3,3736.1,1.3687305]
[1641017903877,0.00113685,3736.3,3736.0,3.45768432]
[1641017904477,2.54145656,3736.3,3736.0,3.45768432]
[1641017904675,2.11956375,3736.2,3736.0,3.45768432]
[1641017904876,0.66927,3736.2,3736.0,3.45768432]
[1641017905913,2.54031971,3736.1,3736.0,3.45768432]
[1641017906116,3.46467394,3736.1,3736.0,3.45768432]
[1641017908421,5.06467394,3736.1,3736.0,3.45768432]
[1641017909028,20.71467394,3736.1,3736.0,3.45768432]
[1641017909875,5.06467394,3736.1,3736.0,3.45768432]
[1641017910071,6.52876465,3736.1,3736.0,3.45768432]
[1641017910278,7.88596484,3736.1,3736.0,3.45768432]
[1641017910477,6.42187413,3736.1,3736.0,3.45768432]
[1641017910675,7.89272019,3736.1,3736.0,3.45768432]
[1641017911285,23.54272019,3736.1,3736.0,3.45768432]
[1641017911681,22.07187413,3736.1,3736.0,3.45768432]
[1641017911977,20.71467394,3736.1,3736.0,3.45768432]
[1641017912380,20.71467394,3736.1,3735.3,1.3687305]
[1641017912381,4.9,3735.7,3735.3,1.3687305]
[1641017912581,5.2,3735.7,3735.3,1.3687305]
[1641017912879,15.65,3735.5,3735.1,1.80317356]
[1641017913081,15.65,3735.2,3735.1,1.80317356]
[1641017913524,15.65,3735.2,3734.0,4.52384363]
[1641017913525,0.66961,3734.6,3734.0,4.52384363]
[1641017913725,0.85572308,3734.2,3734.0,4.52384363]
[1641017914125,1.45572308,3734.2,3734.0,4.52384363]
[1641017914330,1.45572308,3734.2,3733.7,0.06849831]
[1641017915127,2.12540308,3734.2,3733.7,0.06849831]
[1641017915328,2.54031971,3734.1,3733.5,0.01080004]
[1641017915727,0.89366677,3733.5,3733.1,0.01307374]
[1641017915929,1.3,3734.0,3733.1,0.01307374]
[1641017916128,1.6,3734.0,3733.1,0.01307374]
[1641017916933,2.54031971,3733.9,3733.1,0.01307374]
[1641017917160,2.27331971,3733.9,3733.1,0.01307374]
[1641017917367,0.99230336,3733.7,3733.1,0.01307374]
[1641017919266,1.29230336,3733.7,3733.1,0.01307374]
[1641017919869,0.3,3733.7,3733.1,0.01307374]
[1641017920170,1.6,3734.0,3733.1,0.01307374]
[1641017921021,2.49594767,3734.0,3733.1,0.01307374]
[1641017924536,0.89594767,3734.0,3733.1,0.01307374]
[1641017924779,4.1475,3734.1,3733.1,0.68266374]
[1641017924981,1.0,3734.1,3733.1,1.60226374]
[1641017925177,1.0,3734.1,3733.2,2.44980178]
[1641017925377,1.0,3734.1,3733.2,2.55860178]
[1641017925577,1.0,3734.1,3733.3,0.11193689]
[1641017925777,1.0,3734.1,3733.3,0.01193689]
[1641017925981,0.0627,3735.4,3733.6,0.66942]
[1641017926180,0.0627,3735.4,3733.9,0.81038658]
[1641017926181,0.91684637,3735.0,3733.9,0.81038658]
[1641017926377,0.91684637,3735.0,3733.9,1.50478658]
[1641017926579,0.91684637,3735.0,3734.0,0.00795792]
[1641017927080,1.51684637,3735.0,3734.0,0.00795792]
[1641017934987,1.0,3734.9,3734.0,0.00795792]
[1641017935182,1.0,3734.9,3733.8,0.00909477]
[1641017936023,1.51684637,3735.0,3733.9,0.66946]
[1641017936429,1.51684637,3735.0,3734.0,0.00795792]
[1641017938035,1.0,3734.9,3733.7,0.67915319]
[1641017938232,1.0,3734.9,3733.8,0.00909477]
[1641017940176,1.00383259,3734.4,3733.8,0.00909477]
[1641017940773,1.00383259,3734.4,3733.6,0.01023162]
[1641017941776,1.30383259,3734.4,3733.6,0.01023162]
[1641017941974,1.60383259,3734.4,3733.6,0.01023162]
[1641017942175,1.60383259,3734.4,3733.3,0.66957]
[1641017942176,1.60383259,3734.4,3733.4,0.01136846]
[1641017942879,2.00034346,3734.3,3733.4,0.01136846]
[1641017943076,2.00800514,3734.3,3733.1,0.01307374]
[1641017943277,6.13740514,3734.3,3733.1,0.01307374]
[1641017943517,4.1294,3734.3,3733.1,0.01307374]
[1641017943921,4.1887,3734.3,3733.1,0.01307374]
[1641017944420,0.66967,3734.2,3733.1,0.01307374]
[1641017944620,1.96967,3734.2,3733.1,0.01307374]
[1641017944919,2.26967,3734.2,3733.1,0.01307374]
[1641017946122,1.33357843,3734.1,3733.1,0.01307374]
[1641017946321,4.30068754,3734.1,3733.1,0.01307374]
[1641017946522,1.0,3734.0,3733.1,0.01307374]
[1641017946727,0.96864266,3733.4,3733.1,0.01307374]
[1641017946924,1.56864266,3733.4,3733.1,0.01307374]
[1641017947171,2.07846478,3733.3,3733.1,0.01307374]
[1641017947569,3.07846478,3733.3,3733.1,0.01307374]
[1641017947770,3.96710911,3733.3,3733.1,0.01307374]
[1641017948167,6.04557389,3733.3,3733.1,0.01307374]
[1641017948370,3.96710911,3733.3,3733.1,0.01307374]
[1641017948572,2.96710911,3733.2,3733.1,0.01307374]
[1641017948775,3.26710911,3733.2,3733.1,0.01307374]
[1641017948975,4.8969677,3733.2,3733.1,0.01307374]
[1641017950174,5.1969677,3733.2,3733.1,0.01307374]
[1641017950377,6.4969677,3733.2,3733.1,0.01307374]
[1641017953633,6.4969677,3733.2,3733.1,0.01390646]
[1641017955084,7.4969677,3733.2,3733.1,0.01390646]
[1641017955481,8.83054613,3733.2,3733.1,0.01390646]
[1641017956085,7.4969677,3733.2,3733.1,0.01390646]
[1641017961227,7.6050437,3733.2,3733.1,0.01390646]
[1641017964581,23.2550437,3733.2,3733.1,0.01390646]
[1641017964780,20.28793459,3733.2,3733.1,0.01390646]
[1641017964981,20.34943459,3733.2,3733.1,0.01390646]
[1641017971426,20.24135859,3733.2,3733.1,0.01390646]
[1641017973023,20.24135859,3733.2,3733.1,0.00083272]
[1641017973828,1.0615,3733.2,3733.1,0.00083272]
[1641017974030,1.0,3733.2,3733.1,0.00083272]
[1641017974930,1.0,3733.5,3733.1,0.00083272]
[1641017975330,1.0,3733.5,3733.2,0.01250531]
[1641017976732,1.0,3733.5,3732.9,0.53305803]
[1641017976933,0.00113685,3733.4,3732.9,0.53305803]
[1641017977174,0.00113685,3733.4,3733.0,0.00113685]
[1641017979084,0.00113685,3733.4,3733.1,0.66965]
[1641017979481,0.00113685,3733.4,3732.9,0.00170527]
[1641017980782,0.00113685,3733.4,3732.9,0.67137527]
[1641017984238,0.00113685,3733.4,3732.9,0.00170527]
[1641017984671,1.82816838,3733.4,3732.8,0.0022737]
[1641017984872,2.42816838,3733.4,3732.8,0.0022737]
[1641017985072,3.42816838,3733.4,3732.6,0.00341054]
[1641017985472,0.86066562,3733.0,3732.6,0.00341054]
[1641017985774,1.74163442,3732.9,3732.6,0.00341054]
[1641017986173,1.46066562,3733.0,3732.6,0.00341054]
[1641017986675,1.46066562,3733.0,3732.5,0.00397897]
[1641017987781,4.66173435,3732.9,3732.5,0.00397897]
[1641017988183,4.66173435,3732.9,3732.4,0.00454739]
[1641017988430,2.95525846,3732.9,3732.4,0.00454739]
[1641017988829,0.6,3733.0,3732.4,2.02090715]
[1641017989037,0.3,3732.9,3732.4,2.02090715]
[1641017989330,3.25492477,3732.9,3732.5,0.00397897]
[1641017989929,0.3,3732.9,3732.5,0.00397897]
[1641017990131,1.78837884,3733.1,3732.5,0.00397897]
[1641017990629,2.38837884,3733.1,3732.5,0.00397897]
[1641017990831,2.38837884,3733.1,3732.5,0.67372897]
[1641017990832,2.95401389,3733.0,3732.5,0.67372897]
[1641017991238,2.95401389,3733.0,3732.6,0.00341054]
[1641017992274,2.95401389,3733.2,3732.6,0.00341054]
[1641017992475,1.70151374,3733.1,3732.6,0.00341054]
[1641017992677,2.00151374,3733.1,3732.6,0.00341054]
[1641017993480,0.3,3733.1,3732.6,0.00341054]
[1641017993878,0.3,3733.2,3732.6,0.00341054]
[1641017994078,1.71749714,3733.1,3732.6,0.00341054]
[1641017994280,2.01749714,3733.1,3732.6,0.00341054]
[1641017994583,4.97238614,3733.1,3732.6,0.00341054]
[1641017995381,2.954889,3733.0,3732.6,0.00341054]
[1641017997732,2.01749714,3733.1,3732.6,0.00341054]
[1641017997930,1.00481527,3732.8,3732.6,0.00341054]
[1641017998132,1.00481527,3732.8,3732.5,1.34658976]
[1641017998133,1.73539376,3732.7,3732.5,1.35056873]
[1641017998333,1.73539376,3732.7,3732.6,0.00341054]
[1641017998533,5.67267162,3732.7,3732.6,0.00341054]
[1641017998934,5.67267162,3732.7,3732.0,0.00682108]
[1641018000221,2.93727786,3732.6,3732.0,0.00682108]
[1641018000620,2.93727786,3732.6,3731.9,0.00738951]
[1641018001221,1.0,3732.8,3732.2,0.66979]
[1641018001626,1.0,3732.8,3732.3,0.00511581]
[1641018002022,1.108077,3732.8,3732.2,0.00568424]
[1641018002426,1.108077,3732.8,3732.2,0.67550424]
[1641018002822,1.108077,3732.8,3732.3,0.00511581]
[1641018003223,1.108077,3732.8,3732.2,0.00568424]
[1641018003422,1.108077,3732.8,3732.3,0.6698]
[1641018003828,1.108077,3732.8,3732.4,0.00454739]
[1641018004429,1.108077,3732.8,3732.3,0.00511581]
[1641018005034,1.008077,3732.8,3732.3,0.00511581]
[1641018005231,1.008077,3732.8,3732.3,0.67491581]
[1641018005731,1.008077,3732.8,3732.4,0.00454739]
[1641018005931,0.108077,3732.8,3732.4,0.00454739]
[1641018006132,0.108077,3732.8,3732.5,0.66978]
[1641018006533,0.108077,3732.8,3732.6,0.00341054]
[1641018006934,0.108077,3732.8,3732.6,0.64151054]
[1641018007179,1.33357843,3733.6,3733.3,0.66956]
[1641018007586,0.00170527,3733.5,3733.3,0.66956]
[1641018007780,0.00170527,3733.5,3733.4,5.32935946]
[1641018008082,1.33357843,3734.3,3733.5,1.33892]
[1641018008279,1.33357843,3734.3,3733.9,0.66945]
[1641018008897,10.49830034,3734.9,3733.9,0.66945]
[1641018008898,7.9102018,3734.9,3733.9,0.66945]
[1641018009284,0.00852635,3734.7,3733.9,0.66945]
[1641018009585,0.00795793,3734.6,3733.9,0.66945]
[1641018009784,0.00795793,3734.6,3733.7,0.66955]
[1641018009983,2.64197275,3734.7,3733.7,0.66955]
[1641018009984,2.64936225,3734.5,3733.7,0.66955]
[1641018010384,0.00682108,3734.4,3733.7,0.66955]
[1641018010783,0.00625266,3734.3,3733.7,0.66955]
[1641018011236,0.00568423,3734.2,3733.7,0.66955]
[1641018011636,0.00511581,3734.1,3733.7,0.66955]
[1641018012037,0.00454739,3734.0,3733.7,0.66955]
[1641018012435,0.6,3734.5,3733.7,0.66955]
[1641018012436,0.00397896,3733.9,3733.7,0.66955]
[1641018012838,0.00341054,3733.8,3733.7,0.66955]
[1641018013437,0.00341054,3733.8,3733.7,3.31955]
[1641018013636,0.00341054,3733.8,3733.7,4.31955]
[1641018015687,0.00341054,3733.8,3733.7,1.66955]
[1641018015887,0.00341054,3733.8,3733.7,0.66955]
[1641018019524,0.00341054,3733.8,3733.5,1.36010461]
[1641018019925,0.06893158,3734.4,3733.4,1.69894946]
[1641018019926,0.00284212,3733.7,3733.4,1.69894946]
[1641018020325,0.00227369,3733.6,3733.4,1.69894946]
[1641018020727,0.00170527,3733.5,3733.4,0.66959]
[1641018021129,0.00625266,3733.5,3733.4,0.66959]
[1641018030093,0.00625266,3733.5,3733.4,4.11959]
[1641018030497,0.00625266,3733.5,3733.4,5.11959]
[1641018031694,0.00625266,3733.5,3733.4,1.66959]
[1641018032095,0.00625266,3733.5,3733.4,0.66959]
[1641018033097,0.00625266,3733.5,3733.4,2.81959]
[1641018033627,0.00625266,3733.5,3733.4,3.81959]
[1641018033824,0.00625266,3733.5,3733.4,9.81959]
[1641018034024,0.00625266,3733.5,3733.4,10.81959]
[1641018034228,0.00625266,3733.5,3733.4,3.81959]
[1641018042928,0.00625266,3733.5,3733.4,1.66959]
[1641018043132,0.00625266,3733.5,3733.4,0.66959]
[1641018046200,2.65227228,3733.5,3733.4,0.66959]
[1641018049434,0.00625266,3733.5,3733.4,0.66959]
[1641018050843,0.00625266,3733.5,3733.4,2.49456446]
[1641018051043,0.06893217,3734.1,3733.4,2.49456446]
[1641018051444,0.00454739,3734.0,3733.4,2.49456446]
[1641018051844,0.00397896,3733.9,3733.4,2.49456446]
[1641018052280,0.00341054,3733.8,3733.4,2.49456446]
[1641018052483,0.00341054,3733.8,3733.6,0.66949]
[1641018052685,0.00284212,3733.7,3733.6,0.66949]
[1641018053086,2.63917513,3733.7,3733.6,0.66949]
[1641018067902,2.63917513,3733.7,3733.6,2.03771318]
[1641018068102,2.63917513,3733.7,3733.6,3.03771318]
[1641018068504,2.63917513,3733.7,3733.6,2.03771318]
[1641018072432,2.53917513,3733.7,3733.6,2.03771318]
[1641018072633,2.53917513,3733.7,3733.6,2.03885003]
[1641018072831,0.06893178,3734.3,3733.6,2.03885003]
[1641018073234,0.00227369,3734.2,3733.6,2.03885003]
[1641018073635,0.00170527,3734.1,3733.6,2.03885003]
[1641018074038,0.00113685,3734.0,3733.6,2.03885003]
[1641018074440,0.00284212,3734.3,3733.6,2.03885003]
[1641018074889,0.00341054,3734.4,3733.6,2.03885003]
[1641018075291,0.00284212,3734.3,3733.6,2.03885003]
[1641018075690,0.00341054,3734.4,3733.6,2.03885003]
[1641018076092,0.00284212,3734.3,3733.6,2.03885003]
[1641018076490,0.00341054,3734.4,3733.6,2.03885003]
[1641018076895,0.00284212,3734.3,3733.6,2.03885003]
[1641018077294,0.00341054,3734.4,3733.6,2.03885003]
[1641018077700,0.00284212,3734.3,3733.6,2.03885003]
[1641018078098,0.00341054,3734.4,3733.6,2.03885003]
[1641018078540,0.00284212,3734.3,3733.6,2.03885003]
[1641018078939,2.11497081,3734.5,3733.6,2.03885003]
[1641018078940,0.00341054,3734.4,3733.6,2.03885003]
[1641018079343,0.00284212,3734.3,3733.6,2.03885003]
[1641018079744,0.00341054,3734.4,3733.6,2.03885003]
[1641018080142,0.00284212,3734.3,3733.6,2.03885003]
[1641018080344,0.00284212,3734.3,3733.6,3.03885003]
[1641018080545,2.11497081,3734.5,3733.6,3.03885003]
[1641018080546,0.00341054,3734.4,3733.6,3.03885003]
[1641018080945,0.00284212,3734.3,3733.6,3.03885003]
[1641018081343,0.00341054,3734.4,3733.6,3.03885003]
[1641018081744,0.00284212,3734.3,3733.6,3.03885003]
[1641018081945,0.00284212,3734.3,3734.0,0.66945]
[1641018082178,0.00341054,3734.4,3734.0,0.66945]
[1641018082579,0.00284212,3734.3,3734.0,0.66945]
[1641018082980,0.00454739,3734.6,3734.0,0.66945]
[1641018083381,0.00397896,3734.5,3734.0,0.66945]
[1641018083785,0.00341054,3734.4,3734.0,0.66945]
[1641018084185,0.00284212,3734.3,3734.0,0.66945]
[1641018084586,0.00454739,3734.6,3734.0,0.66945]
[1641018084987,0.00397896,3734.5,3734.0,0.66945]
[1641018085387,0.00341054,3734.4,3734.0,0.66945]
[1641018085794,0.00284212,3734.3,3734.0,0.66945]
[1641018086240,0.00454739,3734.6,3734.0,0.66945]
[1641018086439,0.00454739,3734.6,3734.0,2.03767318]
[1641018086640,0.00397896,3734.5,3734.0,2.03767318]
[1641018087041,0.00341054,3734.4,3734.0,2.03767318]
[1641018087240,0.00341054,3734.4,3734.0,0.66945]
[1641018087442,0.00284212,3734.3,3734.0,0.66945]
[1641018087839,0.00454739,3734.6,3734.0,0.66945]
[1641018088242,1.33357843,3734.7,3734.0,0.66945]
[1641018088243,0.00397896,3734.5,3734.0,0.66945]
[1641018088643,0.00341054,3734.4,3734.0,0.66945]
[1641018089042,0.00284212,3734.3,3734.0,0.66945]
[1641018089543,0.00454739,3734.6,3734.0,0.66945]
[1641018089816,0.00397896,3734.5,3734.0,0.66945]
[1641018090220,0.00341054,3734.4,3734.0,0.66945]
[1641018090622,0.00284212,3734.3,3734.0,0.66945]
[1641018091028,0.00454739,3734.6,3734.0,0.66945]
[1641018091423,0.00397896,3734.5,3734.0,0.66945]
[1641018091825,0.00341054,3734.4,3734.0,0.66945]
[1641018092226,0.00284212,3734.3,3734.0,0.66945]
[1641018092623,0.00511581,3734.7,3734.0,0.66945]
[1641018093023,2.5760079,3734.3,3734.0,0.66945]
[1641018093428,0.00454739,3734.6,3734.0,0.66945]
[1641018093835,0.00397896,3734.5,3734.0,0.66945]
[1641018094234,0.00341054,3734.4,3734.0,0.66945]
[1641018094634,0.00284212,3734.3,3734.0,0.66945]
[1641018094833,2.57885002,3734.3,3734.0,0.66945]
[1641018095034,2.5760079,3734.3,3734.0,0.66945]
[1641018096033,2.5760079,3734.4,3734.0,0.66945]
[1641018096436,0.00284212,3734.3,3734.0,0.66945]
[1641018096634,2.57885002,3734.3,3734.0,0.66945]
[1641018096836,2.5760079,3734.3,3734.0,0.66945]
[1641018097680,2.5760079,3734.4,3734.0,0.66945]
[1641018098081,0.00284212,3734.3,3734.0,0.66945]
[1641018098684,2.57885002,3734.3,3734.0,0.66945]
[1641018099287,2.57885002,3734.3,3733.7,1.36822318]
[1641018099288,3.17885002,3734.3,3733.7,1.36822318]
[1641018100091,3.17885002,3734.3,3733.7,0.36472318]
[1641018100092,1.0,3734.1,3733.7,0.36472318]
[1641018100290,4.85,3734.0,3733.6,0.00113685]
[1641018100491,4.85113685,3734.0,3733.6,0.00113685]
[1641018100693,1.0,3733.9,3733.5,0.00170527]
[1641018100937,1.6,3733.9,3733.5,0.00170527]
[1641018101131,0.8964393,3733.3,3733.1,0.00397897]
[1641018101331,1.6,3733.9,3733.1,0.00397897]
[1641018101734,2.5760079,3733.8,3733.1,0.00397897]
[1641018102836,2.5760079,3733.8,3733.1,0.67364897]
[1641018103236,2.5760079,3733.8,3733.2,0.00341054]
[1641018103835,0.78681774,3733.8,3733.1,0.00397897]
[1641018104683,0.78681774,3733.8,3733.5,0.66961]
[1641018104884,2.5760079,3733.7,3733.5,0.66961]
[1641018105886,2.5760079,3733.7,3733.3,0.66963]
[1641018106288,2.5760079,3733.7,3733.4,0.00227369]
[1641018107390,2.5760079,3733.7,3733.1,0.00397897]
[1641018108855,2.5760079,3733.7,3733.1,0.67363897]
[1641018109158,2.5760079,3733.7,3733.2,0.00341054]
[1641018109857,2.8760079,3733.7,3733.2,0.00341054]
[1641018110856,3.92997315,3733.6,3733.2,0.00341054]
[1641018112058,3.92997315,3733.6,3733.1,0.00397897]
[1641018112280,2.5760079,3733.6,3733.1,0.00397897]
[1641018112483,2.5760079,3733.5,3733.1,0.00397897]
[1641018113287,2.5760079,3733.5,3733.1,0.67363897]
[1641018113588,2.5760079,3733.6,3733.2,0.00341054]
[1641018115589,2.5760079,3733.6,3733.2,0.67305054]
[1641018116041,2.5760079,3733.6,3733.3,0.00284212]
[1641018117036,3.5760079,3733.6,3733.3,0.00284212]
[1641018117438,2.5760079,3733.5,3733.3,0.00284212]
[1641018118437,2.5760079,3733.5,3733.1,0.00397897]
[1641018120491,2.5760079,3733.5,3733.2,0.66965]
[1641018120894,2.5760079,3733.5,3733.3,0.00284212]
[1641018121292,2.5760079,3733.5,3733.1,0.00397897]
[1641018121494,1.0,3733.7,3733.3,0.66962]
[1641018121796,1.0,3733.7,3733.4,0.00227369]
[1641018122094,0.00113685,3734.0,3733.4,0.00227369]
[1641018122495,0.00113685,3734.0,3733.3,0.00284212]
[1641018122696,2.63147955,3734.0,3733.6,0.66958]
[1641018124747,0.00113685,3734.0,3733.6,0.66958]
[1641018125244,2.63147955,3734.0,3733.6,0.66958]
[1641018125843,0.00113685,3734.0,3733.4,0.6696]
[1641018126242,0.00113685,3734.0,3733.5,0.00170527]
[1641018126444,2.6303427,3733.9,3733.5,0.00170527]
[1641018126844,2.6303427,3733.9,3733.3,0.00284212]
[1641018127047,2.63147955,3734.0,3733.3,0.00284212]
[1641018127697,2.63147955,3734.0,3733.5,0.66959]
[1641018130504,2.6303427,3734.0,3733.5,0.66959]
[1641018136794,2.9303427,3734.0,3733.3,0.00284212]
[1641018136995,1.0,3733.9,3733.3,0.00284212]
[1641018138194,2.6303427,3733.8,3733.3,0.00284212]
[1641018138448,3.2303427,3733.8,3733.3,0.00284212]
[1641018139250,2.28017396,3733.5,3733.3,0.00284212]
[1641018139451,1.35396525,3733.5,3733.3,0.00284212]
[1641018139651,2.6303427,3733.4,3733.3,0.00284212]